bitfinex-derivatives/quotes_ETHF0:USTF0_20250824
["timestamp","ask_amount","ask_price","bid_price","bid_amount"]
[1756009485808,1.92112354,4784.6,4784.5,1.59605]
[1756009486309,1.92112354,4784.6,4784.5,1.84075]
[1756009486806,1.92112354,4784.6,4784.5,1.59605]
[1756009487710,1.92112354,4784.6,4784.5,0.41815]
[1756009488911,1.92112354,4784.6,4784.5,1.32785]
[1756009489106,1.92112354,4784.6,4784.5,1.59605]
[1756009490710,1.92112354,4784.6,4784.5,0.41815]
[1756009491906,1.92112354,4784.6,4784.5,1.01915]
[1756009492411,1.92112354,4784.6,4784.5,1.84075]
[1756009492805,1.4263,4784.6,4784.5,1.84075]
[1756009494113,1.0017,4784.6,4784.5,1.42855]
[1756009498114,1.0017,4784.6,4784.5,1.61426382]
[1756009498816,3.8624,4784.8,4784.7,0.82753]
[1756009499016,4.70458219,4784.8,4784.7,1.42853]
[1756009499212,5.12918219,4784.8,4784.7,1.84073]
[1756009499417,5.12918219,4784.8,4784.7,1.59603]
[1756009502813,5.12918219,4784.8,4784.7,0.41813]
[1756009503015,1.0792,4784.2,4784.1,0.09615083]
[1756009503219,24.16918219,4784.2,4784.1,0.09615083]
[1756009503408,0.5583,4783.6,4783.5,0.41823]
[1756009503613,5.1292501,4783.6,4783.5,0.41823]
[1756009505121,4.6341,4783.6,4783.5,0.41823]
[1756009505718,5.12871679,4783.6,4783.5,0.41823]
[1756009506120,4.6341,4783.6,4783.5,0.41823]
[1756009508829,4.6341,4783.6,4783.0,0.3365]
[1756009509123,0.5705,4783.2,4783.1,0.74230736]
[1756009509327,1.4135,4783.2,4783.1,1.74767736]
[1756009509527,1.4135,4783.2,4783.1,2.01357736]
[1756009510621,0.8492,4783.2,4783.1,2.01357736]
[1756009510828,0.8492,4783.5,4783.4,1.82804]
[1756009511028,0.2445,4783.5,4783.4,1.82804]
[1756009511230,3.2078,4783.6,4783.4,1.82804]
[1756009511426,3.2078,4783.6,4783.5,1.4098]
[1756009511730,1.0124,4783.6,4783.5,1.4098]
[1756009512327,1.4135,4783.6,4783.5,1.4098]
[1756009512729,1.0724,4783.6,4783.5,1.4098]
[1756009513324,1.4135,4783.6,4783.5,1.4098]
[1756009514229,4.6213,4783.6,4783.5,1.1439]
[1756009518135,4.6213,4783.6,4783.4,0.41824]
[1756009518328,3.7783,4783.6,4783.4,0.41824]
[1756009518529,1.4135,4783.5,4783.4,1.00534]
[1756009518732,1.4135,4783.5,4783.4,1.56214]
[1756009519640,1.4135,4783.5,4783.4,1.82804]
[1756009529642,1.4135,4783.5,4783.4,1.56214]
[1756009530641,1.4135,4783.5,4783.4,0.41824]
[1756009531834,0.843,4783.4,4783.2,0.41825]
[1756009532041,1.4135,4783.3,4783.2,0.41826]
[1756009532242,1.4135,4783.3,4783.2,0.60410759]
[1756009532744,1.4135,4783.3,4783.2,1.74800759]
[1756009533748,1.4135,4783.3,4783.2,1.98850759]
[1756009534644,1.4135,4783.3,4783.2,1.74800759]
[1756009534843,3.2078,4783.8,4783.0,0.74458]
[1756009534844,0.166,4783.1,4783.0,0.74458]
[1756009535045,1.4017,4783.1,4783.0,1.15268]
[1756009535244,1.4017,4783.1,4783.0,1.40308]
[1756009537042,1.4017,4783.1,4783.0,1.15268]
[1756009537242,1.89679658,4783.1,4783.0,1.15268]
[1756009537947,1.4017,4783.1,4783.0,1.15268]
[1756009538343,1.4017,4783.1,4782.8,0.2504]
[1756009538344,1.4017,4782.9,4782.8,0.41829]
[1756009539553,1.4017,4782.9,4782.8,0.74459]
[1756009539750,0.5722,4782.6,4782.2,3.2078]
[1756009540047,1.4017,4782.3,4782.2,3.95245]
[1756009540754,1.4017,4782.3,4782.2,4.43915]
[1756009540955,1.4017,4782.3,4782.2,4.61095]
[1756009541952,0.4017,4782.1,4782.0,0.813]
[1756009542155,1.4017,4782.1,4782.0,0.9848]
[1756009542849,1.4017,4782.1,4781.9,0.41837]
[1756009543047,1.4017,4782.0,4781.9,1.40317]
[1756009543249,0.5722,4781.5,4781.4,0.7485]
[1756009543555,1.4017,4781.5,4781.4,0.9848]
[1756009544953,1.4017,4781.5,4780.9,0.41845]
[1756009544954,1.166,4781.5,4780.9,0.41845]
[1756009545251,0.2473,4781.1,4781.0,0.7344]
[1756009545757,0.2473,4781.1,4781.0,0.9848]
[1756009545958,0.166,4781.9,4781.8,0.5767]
[1756009546155,0.4133,4781.9,4781.8,0.9848]
[1756009546351,1.4017,4781.9,4781.8,0.9848]
[1756009546557,0.4133,4781.9,4781.8,0.9848]
[1756009546751,0.2473,4781.9,4781.8,0.9848]
[1756009548156,0.2473,4782.5,4782.4,0.6585]
[1756009548352,0.4133,4782.5,4782.4,0.9848]
[1756009548656,1.82002,4782.5,4782.4,0.9848]
[1756009549051,0.66562,4782.5,4782.4,0.5626]
[1756009549357,0.66562,4782.5,4782.4,0.7344]
[1756009549358,0.2473,4782.5,4782.4,0.7344]
[1756009549558,0.6609,4782.5,4782.4,0.7344]
[1756009550060,0.2473,4782.5,4782.4,0.7344]
[1756009551048,0.2473,4782.5,4782.4,0.974]
[1756009552655,0.4133,4782.5,4782.4,0.974]
[1756009552955,0.6609,4782.5,4782.4,0.974]
[1756009553257,1.4017,4782.5,4782.4,0.974]
[1756009555352,0.8314,4782.5,4782.4,0.974]
[1756009556956,1.0671,4782.5,4782.4,0.974]
[1756009557262,1.4017,4782.5,4782.4,0.974]
[1756009562164,0.8314,4782.5,4782.4,0.974]
[1756009562364,1.4017,4782.5,4782.4,0.974]
[1756009563661,1.82002,4782.5,4782.3,0.41833]
[1756009563863,0.97215,4782.1,4781.9,0.41837]
[1756009564059,0.5538,4781.8,4781.7,0.41838]
[1756009564265,0.5538,4781.6,4781.5,0.5731]
[1756009564561,1.3864,4781.6,4781.3,3.62622]
[1756009564764,1.3864,4781.3,4781.2,0.41843]
[1756009565264,1.3864,4781.3,4781.2,0.75563]
[1756009565764,1.3864,4781.3,4781.2,0.99153]
[1756009566350,1.3864,4781.3,4781.2,0.81673]
[1756009566551,1.04585,4782.3,4781.2,0.81673]
[1756009566552,0.4058,4781.9,4781.8,1.39248]
[1756009566957,0.3326,4782.2,4781.8,1.39248]
[1756009567154,0.2579,4782.2,4782.1,1.39245]
[1756009567354,3.2078,4782.8,4782.7,0.4183]
[1756009567563,3.8715,4782.8,4782.7,1.3924]
[1756009568760,4.0401,4782.8,4782.7,1.3924]
[1756009569060,0.2579,4782.8,4782.7,1.3924]
[1756009569263,4.0401,4783.4,4783.3,1.39235]
[1756009569461,4.5942,4783.4,4783.3,1.39235]
[1756009569864,1.1285,4783.2,4783.1,0.41826]
[1756009570167,1.3864,4783.2,4783.1,0.41826]
[1756009572366,1.0538,4783.2,4783.1,1.39236]
[1756009572568,0.4216,4783.2,4783.1,1.39236]
[1756009575161,0.6637,4783.2,4783.1,1.39236]
[1756009575864,0.8323,4783.2,4783.1,1.39236]
[1756009578664,1.1649,4783.2,4783.1,1.39236]
[1756009579071,1.3864,4783.2,4783.1,1.39236]
[1756009580766,1.0538,4783.2,4783.1,1.39236]
[1756009581169,1.3864,4783.2,4783.1,1.39236]
[1756009587969,0.2579,4783.2,4783.1,1.39236]
[1756009588170,1.3864,4783.2,4783.1,1.39236]
[1756009596174,1.3864,4783.2,4783.1,1.56857301]
[1756009600684,1.3864,4783.2,4783.1,1.39236]
[1756009600885,1.3864,4783.2,4783.1,1.5687492]
[1756009601385,1.3864,4783.2,4783.1,1.56876376]
[1756009607393,1.3864,4783.2,4783.1,1.56883057]
[1756009607783,0.2579,4783.2,4783.1,1.56883057]
[1756009607990,0.2484,4783.7,4783.6,1.15292]
[1756009608291,0.2484,4783.7,4783.6,1.55879057]
[1756009608592,1.1752,4783.7,4783.6,1.55879057]
[1756009609491,1.3947,4783.7,4783.6,1.55879057]
[1756009610588,1.3947,4783.7,4783.6,1.38232]
[1756009610788,1.3947,4783.7,4783.6,1.55863215]
[1756009610990,0.254,4783.7,4783.6,1.55863215]
[1756009611589,0.254,4783.7,4783.6,1.55859065]
[1756009611995,0.6704,4783.7,4783.6,1.55859065]
[1756009612296,1.1752,4783.7,4783.6,1.55859065]
[1756009613700,0.8331,4783.7,4783.6,1.55859065]
[1756009614201,0.254,4783.7,4783.6,1.55859065]
[1756009614699,0.5024,4783.7,4783.6,1.55859065]
[1756009614901,0.254,4783.7,4783.6,1.55859065]
[1756009615100,0.5024,4783.7,4783.6,1.55859065]
[1756009615790,0.254,4783.7,4783.6,1.55859065]
[1756009616397,0.7986,4784.9,4784.8,0.99212]
[1756009616596,1.29294275,4784.9,4784.8,1.55052]
[1756009616794,0.7986,4784.9,4784.8,0.64852]
[1756009616994,1.1407,4784.9,4784.8,0.41812]
[1756009617596,1.1407,4784.9,4784.8,1.16042]
[1756009617800,1.1407,4784.9,4784.8,1.55052]
[1756009618395,1.3947,4784.9,4784.8,1.55052]
[1756009618798,1.3947,4784.9,4784.8,1.32112]
[1756009619700,0.5502,4783.9,4783.8,3.626]
[1756009620005,0.5502,4783.9,4783.6,0.2294]
[1756009620006,1.3947,4783.7,4783.6,0.41822]
[1756009620997,5.3947,4783.7,4783.6,0.41822]
[1756009623296,5.3947,4783.7,4783.6,0.68560515]
[1756009623502,5.3947,4783.7,4783.6,0.26738515]
[1756009625199,0.8128,4783.6,4783.5,0.41823]
[1756009625502,1.3796,4783.6,4783.5,0.26739664]
[1756009625703,0.5668,4783.4,4783.3,0.41824]
[1756009626008,4.5874,4783.4,4783.3,0.68564772]
[1756009628405,4.5874,4783.4,4783.3,0.26740772]
[1756009628807,5.08127275,4783.4,4783.3,0.26740772]
[1756009629109,4.5874,4783.4,4783.3,0.26740772]
[1756009629511,4.5874,4783.4,4783.3,0.2673433]
[1756009631905,1.3796,4783.1,4783.0,0.41827]
[1756009632108,1.1387,4782.3,4782.2,0.7335]
[1756009632410,1.3796,4782.3,4782.2,0.7335]
[1756009632610,1.3796,4782.3,4782.2,1.15185]
[1756009633013,1.3796,4782.3,4782.2,0.41835]
[1756009640313,1.3796,4782.3,4782.2,0.92375]
[1756009640511,1.3796,4782.3,4782.2,1.39655]
[1756009640713,1.3796,4782.3,4782.2,1.78355]
[1756009640907,0.2409,4782.3,4782.2,1.78355]
[1756009641115,0.5715,4782.6,4782.5,0.5504]
[1756009641311,1.3796,4782.6,4782.5,1.3652]
[1756009642521,1.0408,4782.6,4782.5,1.3652]
[1756009642819,0.4133,4782.6,4782.5,1.3652]
[1756009643019,22.2408,4782.7,4782.6,0.96871]
[1756009643219,22.2408,4782.7,4782.6,1.78351]
[1756009643417,22.873,4782.7,4782.6,1.78351]
[1756009643613,4.5874,4782.7,4782.6,1.78351]
[1756009644212,3.2078,4782.7,4782.6,2.04675442]
[1756009644415,19.8376,4783.0,4782.9,1.78348]
[1756009644909,0.8046,4783.0,4782.9,1.78348]
[1756009645111,1.3796,4783.0,4782.9,2.0467486]
[1756009646018,0.2409,4783.0,4782.9,2.0467486]
[1756009646816,0.474,4783.0,4782.9,2.0467486]
[1756009647120,1.3796,4783.0,4782.9,1.8819486]
[1756009647319,1.3796,4783.0,4782.9,1.6597486]
[1756009647621,1.3796,4783.0,4782.9,1.4150486]
[1756009647924,1.3796,4783.0,4782.9,0.6815486]
[1756009649415,1.3796,4783.0,4782.9,0.41828]
[1756009649722,1.3796,4783.0,4782.9,0.26382381]
[1756009650421,0.5668,4783.0,4782.9,0.26384202]
[1756009650917,1.1387,4783.0,4782.9,0.26384202]
[1756009651125,1.3796,4783.0,4782.9,0.26384202]
[1756009652924,1.3796,4783.0,4782.9,0.42140464]
[1756009653125,1.3796,4783.0,4782.9,1.62350464]
[1756009654529,0.5715,4783.0,4782.9,1.62350464]
[1756009655521,19.033,4783.1,4783.0,0.96727]
[1756009655728,19.033,4783.1,4783.0,2.00817464]
[1756009655919,19.5191,4783.1,4783.0,2.00817464]
[1756009656727,20.4251,4783.1,4783.0,2.00817464]
[1756009657727,20.4251,4783.1,4783.0,1.79307464]
[1756009658126,20.4251,4783.1,4783.0,2.00817464]
[1756009659429,20.4251,4783.1,4783.0,2.00806359]
[1756009668635,1.3921,4783.1,4783.0,2.00806359]
[1756009668830,0.2449,4783.1,4783.0,2.00806359]
[1756009669035,1.1472,4783.4,4783.3,0.96725]
[1756009669234,1.3921,4783.4,4783.3,5.21584359]
[1756009669435,1.3921,4783.4,4783.3,5.21576796]
[1756009671333,1.3921,4783.4,4783.3,5.00066796]
[1756009672835,1.3921,4783.4,4783.3,5.21576796]
[1756009675431,0.4123,4783.4,4783.3,5.21576796]
[1756009675833,1.3921,4783.4,4783.3,5.21576796]
[1756009676534,1.3921,4783.4,4783.3,4.61106796]
[1756009676740,1.3921,4783.4,4783.3,3.88976796]
[1756009679144,1.3921,4783.4,4783.3,0.68196796]
[1756009679537,1.88689597,4783.4,4783.3,0.68217002]
[1756009680142,1.88689597,4783.4,4783.3,0.68217003]
[1756009684651,1.88689597,4783.4,4783.3,0.18217003]
[1756009685338,1.88689597,4783.4,4783.3,0.60042003]
[1756009685544,1.88713325,4783.4,4783.3,0.60042003]
[1756009686048,1.88713325,4783.4,4783.3,1.10982003]
[1756009688050,1.88713325,4783.4,4783.3,1.56012003]
[1756009688549,20.91113325,4783.4,4783.3,1.74875]
[1756009688848,20.50813325,4783.4,4783.3,1.36635]
[1756009689153,20.90883325,4783.4,4783.3,1.74875]
[1756009691741,20.90883325,4783.4,4783.3,1.15485]
[1756009691941,20.90883325,4783.4,4783.3,0.57755]
[1756009692150,20.90883325,4783.4,4783.3,0.41825]
[1756009695958,20.90883325,4783.4,4783.3,0.92765]
[1756009696457,20.90883325,4783.4,4783.3,1.19680908]
[1756009696655,20.90883325,4783.4,4783.3,1.42400908]
[1756009696852,20.90883325,4783.4,4783.3,1.81160908]
[1756009697048,20.90883325,4783.4,4783.3,0.68740908]
[1756009698358,20.90883325,4783.4,4783.3,0.41825]
[1756009698562,20.90883325,4783.4,4783.3,0.68737287]
[1756009698953,20.90883325,4783.4,4783.3,0.41825]
[1756009699152,20.90883325,4783.4,4783.3,0.68734772]
[1756009701554,20.90883325,4783.4,4783.3,0.68735812]
[1756009705262,20.90883325,4783.4,4783.3,0.68736831]
[1756009708558,20.90883325,4783.4,4783.3,0.41825]
[1756009708764,20.90883325,4783.4,4783.3,0.68740793]
[1756009709159,20.90883325,4783.4,4783.3,0.68740529]
[1756009709455,20.90883325,4783.4,4783.3,0.68740585]
[1756009709654,20.90883325,4783.4,4783.3,0.26915585]
[1756009718664,20.49928325,4783.4,4783.3,0.26418513]
[1756009719271,20.49928325,4783.4,4783.3,0.26418422]
[1756009719474,20.49928325,4783.4,4783.3,0.26418256]
[1756009719860,21.31488325,4783.4,4783.3,0.26418256]
[1756009720272,21.31488325,4783.4,4783.2,0.41825]
[1756009720473,20.00425,4783.4,4783.3,0.26417946]
[1756009720669,20.49944969,4783.4,4783.3,0.26417946]
[1756009721071,21.31504969,4783.4,4783.3,0.26417946]
[1756009721277,20.89679969,4783.4,4783.3,0.26417946]
[1756009722266,1.87279969,4783.4,4783.3,0.42387946]
[1756009722575,20.88979969,4783.4,4783.3,0.42387946]
[1756009722873,20.88979969,4783.4,4783.3,0.26417946]
[1756009723774,20.88979969,4783.4,4783.3,0.77977946]
[1756009723971,20.88979969,4783.4,4783.3,0.26417946]
[1756009724176,0.7628,4782.9,4782.3,0.5905]
[1756009724475,0.5417,4782.0,4781.9,0.3559]
[1756009724675,19.5577,4782.0,4781.9,0.53174201]
[1756009725069,20.3733,4782.0,4781.9,0.75394201]
[1756009725469,20.3733,4782.0,4781.9,1.33201201]
[1756009726976,20.3733,4782.0,4781.9,1.56661201]
[1756009727573,1.3573,4782.0,4781.9,1.92561201]
[1756009727874,0.894,4782.6,4782.5,0.95812]
[1756009728179,0.894,4782.6,4782.5,4.95752]
[1756009728372,1.1199,4782.6,4782.5,4.95752]
[1756009728567,1.3573,4782.6,4782.5,4.95752]
[1756009729487,1.3573,4782.6,4782.5,1.15612]
[1756009729688,1.3573,4782.6,4782.5,0.41832]
[1756009729883,1.85193137,4782.6,4782.5,0.41832]
[1756009730889,1.3573,4782.6,4782.5,0.41832]
[1756009731289,1.85188167,4782.6,4782.5,0.41832]
[1756009736190,1.85188167,4782.6,4782.5,0.68387449]
[1756009737187,1.85188167,4782.6,4782.5,0.26555449]
[1756009737588,1.85188167,4782.6,4781.6,0.4184]
[1756009737589,1.0002,4781.7,4781.6,0.4184]
[1756009737795,20.2835,4781.7,4781.6,0.7743]
[1756009738381,20.2835,4781.7,4781.6,0.4184]
[1756009740792,20.2835,4781.7,4781.6,0.9965]
[1756009741092,19.7873,4781.7,4781.6,1.7498]
[1756009741297,20.0566,4781.7,4781.6,1.7498]
[1756009741491,20.2825,4781.7,4781.6,1.5487]
[1756009741895,20.2825,4781.7,4781.6,1.1562]
[1756009742086,19.5547,4781.7,4781.4,0.3559]
[1756009742292,19.5547,4781.7,4781.6,0.4184]
[1756009742896,19.5547,4781.7,4781.4,0.41841]
[1756009743195,1.2695,4781.5,4781.4,0.41841]
[1756009743891,1.26396062,4781.5,4781.4,0.41841]
[1756009744095,1.26396062,4781.5,4781.4,0.99591]
[1756009744297,0.7743,4781.5,4781.4,1.73241]
[1756009744494,0.7743,4781.5,4781.4,4.94021]
[1756009744993,0.4732,4781.8,4781.7,1.3094]
[1756009745497,0.7849,4781.8,4781.7,1.3094]
[1756009746600,1.0486,4781.8,4781.7,1.3094]
[1756009748599,1.2783,4781.8,4781.7,1.3094]
[1756009750004,1.2783,4781.8,4781.7,0.5775]
[1756009750700,1.2783,4781.7,4781.6,0.4184]
[1756009751097,1.2783,4781.7,4781.6,1.151]
[1756009751995,1.2783,4781.7,4781.6,1.3798]
[1756009752197,1.2783,4781.7,4781.6,0.4184]
[1756009752801,20.2923,4781.7,4781.6,0.4184]
[1756009753503,20.2923,4781.7,4781.6,0.7722]
[1756009754103,20.2923,4781.7,4781.6,0.9959]
[1756009754505,20.2923,4781.7,4781.6,0.4184]
[1756009755106,20.2923,4781.7,4781.6,0.7722]
[1756009756105,20.2923,4781.7,4781.6,0.3538]
[1756009756295,1.2783,4781.4,4781.3,1.37982]
[1756009756700,20.2923,4781.4,4781.3,1.37982]
[1756009757904,20.2923,4781.4,4781.3,1.57602]
[1756009758599,20.2923,4781.4,4781.3,1.37982]
[1756009759006,20.2923,4781.4,4781.3,1.15102]
[1756009762110,20.2923,4781.4,4781.3,1.37982]
[1756009763008,20.2923,4781.4,4781.3,1.15102]
[1756009766714,20.2923,4781.4,4781.3,1.32678232]
[1756009767015,20.2923,4781.4,4781.3,0.81788232]
[1756009767414,20.2923,4781.4,4781.3,0.81795635]
[1756009768111,20.2923,4781.4,4781.3,0.81795717]
[1756009769518,20.2923,4781.4,4781.3,1.17175717]
[1756009769713,20.2903,4781.4,4781.3,1.89665717]
[1756009770219,20.2903,4781.4,4781.3,1.70745717]
[1756009770514,20.2903,4781.4,4781.3,0.59425717]
[1756009772916,20.2903,4781.4,4781.3,1.32685717]
[1756009773121,1.0486,4781.4,4781.3,1.89665717]
[1756009773423,0.7849,4781.4,4781.3,2.15913386]
[1756009774822,1.0483,4781.4,4781.3,2.15913386]
[1756009775820,19.011,4781.6,4781.5,0.95131]
[1756009776011,4.0096,4782.3,4782.2,0.57815]
[1756009776217,23.51565529,4782.3,4782.2,1.97292669]
[1756009776721,23.97425529,4782.3,4782.2,1.97292669]
[1756009776920,23.97425529,4782.3,4782.2,1.78512669]
[1756009777224,23.97425529,4782.3,4782.2,1.40242669]
[1756009777424,23.97425529,4782.3,4782.2,1.40230271]
[1756009777618,23.97425529,4782.3,4782.2,1.63350271]
[1756009777819,4.96325529,4782.3,4782.2,1.97280271]
[1756009778019,23.97425529,4782.3,4782.2,1.97280231]
[1756009778722,23.97425529,4782.3,4782.2,1.78500231]
[1756009779625,23.4782,4782.3,4782.2,1.97280231]
[1756009779825,20.2704,4782.3,4782.2,5.18060231]
[1756009780025,20.2704,4782.3,4782.2,5.35630426]
[1756009780323,0.7588,4782.3,4782.2,5.18060231]
[1756009780524,1.2604,4782.3,4782.2,5.18060231]
[1756009783823,1.2604,4782.3,4782.2,4.84130231]
[1756009784321,1.2604,4782.3,4782.2,5.02910231]
[1756009784520,1.2604,4782.3,4782.2,5.18060231]
[1756009787428,1.2604,4782.3,4782.2,5.18005502]
[1756009788022,1.2604,4782.3,4782.2,5.17991443]
[1756009789726,1.0222,4782.3,4782.2,5.17991443]
[1756009790029,0.7588,4782.3,4782.2,5.17991443]
[1756009792429,1.0222,4782.3,4782.2,5.17991443]
[1756009792723,1.2604,4782.3,4782.2,3.88781443]
[1756009792925,1.2604,4782.3,4782.2,0.26166443]
[1756009793226,0.41839,4781.8,4781.6,0.7586]
[1756009793426,0.722,4781.6,4781.4,0.41841]
[1756009793724,20.2654,4781.5,4781.4,0.41841]
[1756009795018,19.96182,4781.5,4781.3,0.41842]
[1756009795225,1.2604,4781.4,4781.3,0.41842]
[1756009800441,19.005,4781.5,4780.7,0.1878]
[1756009800639,1.2604,4780.7,4780.6,3.2078]
[1756009800840,20.2644,4780.7,4780.6,3.2078]
[1756009801239,19.5424,4780.7,4780.5,0.41849]
[1756009801437,1.2604,4780.6,4780.5,0.41849]
[1756009801845,4.4682,4780.6,4780.5,0.41849]
[1756009802337,1.2604,4780.6,4780.5,0.41849]
[1756009803447,0.4586,4781.2,4781.1,0.95135]
[1756009803635,0.7531,4781.5,4781.4,0.95132]
[1756009803834,0.7531,4781.5,4781.4,1.73212]
[1756009804342,1.0168,4781.5,4781.4,1.73212]
[1756009804547,1.2467,4781.5,4781.4,1.73212]
[1756009805842,3.2078,4781.6,4781.5,1.3009]
[1756009806041,4.247,4781.6,4781.5,1.3009]
[1756009806236,3.9833,4781.6,4781.5,1.3009]
[1756009806442,3.7425,4781.6,4781.5,1.3009]
[1756009807047,0.7755,4781.6,4781.5,1.3009]
[1756009807840,20.0482,4782.0,4781.9,1.71927]
[1756009808043,0.2273,4782.0,4781.9,1.71927]
[1756009808249,0.4681,4782.0,4781.9,1.71927]
[1756009808447,0.7755,4782.0,4781.9,1.71927]
[1756009808846,1.0392,4782.0,4781.9,1.71927]
[1756009811946,0.2273,4782.0,4781.9,1.71927]
[1756009812552,0.5347,4782.0,4781.9,1.71927]
[1756009812740,0.7755,4782.0,4781.9,1.71927]
[1756009813241,1.2691,4782.0,4781.9,1.71927]
[1756009820054,1.0392,4782.0,4781.9,1.71927]
[1756009823549,0.7755,4782.0,4781.9,1.71927]
[1756009823947,0.5347,4782.0,4781.9,1.71927]
[1756009824556,0.7755,4782.0,4781.9,1.71927]
[1756009825546,0.2636,4782.3,4782.2,1.71915]
[1756009825547,0.4681,4782.3,4782.2,1.71915]
[1756009825751,0.2273,4782.3,4782.2,1.71915]
[1756009826157,1.0391,4782.3,4782.2,1.71915]
[1756009826356,1.0391,4782.6,4782.5,1.71912]
[1756009826556,1.76275401,4782.6,4782.5,0.63872]
[1756009826858,0.2636,4782.4,4781.6,3.6318]
[1756009827159,1.269,4781.7,4781.6,4.3578]
[1756009827359,1.269,4781.7,4781.6,3.8466]
[1756009827559,1.269,4781.7,4781.6,4.3578]
[1756009828155,1.269,4781.7,4781.6,4.5954]
[1756009828351,0.2408,4782.0,4781.6,4.927]
[1756009828655,0.5347,4782.0,4781.9,1.71917]
[1756009828853,0.7755,4782.3,4782.2,1.17605]
[1756009829049,0.7755,4782.3,4782.2,1.71915]
[1756009829759,1.0391,4782.3,4782.2,1.71915]
[1756009830057,19.005,4782.5,4782.2,1.71915]
[1756009830361,19.2323,4782.5,4782.4,1.71913]
[1756009830754,0.2273,4782.5,4782.4,1.71913]
[1756009830955,0.5347,4782.5,4782.4,1.71913]
[1756009831155,0.7755,4782.5,4782.4,1.71913]
[1756009832454,0.2408,4782.9,4782.6,1.04578]
[1756009832653,0.5482,4782.9,4782.8,1.3008]
[1756009832850,0.1594,4783.2,4783.1,0.1545]
[1756009833153,4.4768,4783.7,4783.6,1.71903]
[1756009833357,4.97101758,4783.7,4783.6,1.71903]
[1756009833857,3.9833,4783.7,4783.6,1.71903]
[1756009834558,19.5716,4784.0,4783.9,0.7256]
[1756009834758,20.0243,4784.0,4783.9,1.7078]
[1756009835056,20.75955197,4784.0,4783.9,1.1403]
[1756009835262,20.2654,4784.0,4783.9,0.4182]
[1756009836059,20.75936735,4784.0,4783.9,0.4182]
[1756009836253,0.7545,4784.0,4783.9,1.7078]
[1756009836665,1.0193,4784.0,4783.9,1.7078]
[1756009837662,1.2604,4784.0,4783.9,0.4182]
[1756009839860,1.2604,4784.0,4783.9,1.7078]
[1756009841265,1.2604,4784.0,4783.9,1.1403]
[1756009841466,1.2604,4784.0,4783.9,0.6543]
[1756009841662,1.2604,4783.8,4783.7,0.41821]
[1756009841868,0.4957,4783.7,4783.5,0.41823]
[1756009842061,1.18293,4783.6,4783.3,3.62605]
[1756009842260,0.7647,4782.8,4782.7,3.8622]
[1756009842468,1.2604,4782.8,4782.7,3.6261]
[1756009842658,4.4682,4782.8,4782.7,0.4183]
[1756009844061,1.2604,4782.8,4782.7,0.4183]
[1756009844465,4.4682,4782.8,4782.7,0.4183]
[1756009846271,0.4527,4781.7,4781.5,0.41841]
[1756009846474,0.7545,4781.6,4781.5,0.65451]
[1756009846770,0.7545,4781.6,4781.5,1.14051]
[1756009846977,0.7545,4781.6,4781.5,1.74041]
[1756009847872,0.3018,4781.6,4781.5,1.74041]
[1756009849173,0.5236,4781.6,4781.5,1.74041]
[1756009849373,0.7545,4781.6,4781.5,1.74041]
[1756009852778,0.3018,4781.6,4781.5,1.74041]
[1756009853375,0.2218,4782.1,4781.8,0.7683]
[1756009853581,0.7545,4782.6,4782.5,0.96182]
[1756009853774,0.7545,4782.6,4782.5,1.74032]
[1756009854376,0.3018,4782.6,4782.5,1.74032]
[1756009854573,3.2078,4782.8,4782.7,0.9618]
[1756009854776,3.8154,4782.8,4782.7,1.7403]
[1756009854976,3.9623,4782.8,4782.7,1.7403]
[1756009855476,3.2078,4782.8,4782.7,1.7403]
[1756009855676,19.7745,4783.1,4783.0,1.74028]
[1756009856177,19.7745,4783.1,4783.0,1.36518]
[1756009856481,19.7745,4783.1,4783.0,1.52068]
[1756009856682,19.7745,4783.1,4783.0,1.74028]
[1756009856978,19.7745,4783.1,4783.0,0.80628]
[1756009857581,19.7745,4783.1,4783.0,1.14038]
[1756009858376,19.7745,4783.1,4783.0,1.74028]
[1756009860978,19.7745,4783.1,4783.0,1.29588]
[1756009861180,0.1549,4782.8,4782.7,0.4183]
[1756009861380,0.7545,4782.8,4782.7,0.4183]
[1756009861684,0.41833,4782.5,4782.3,3.2078]
[1756009861881,23.90167996,4782.4,4782.1,0.41835]
[1756009862083,0.7545,4782.2,4782.1,0.41835]
[1756009862282,0.1469,4782.0,4781.9,0.41837]
[1756009862482,0.7545,4782.0,4781.9,0.41837]
[1756009863186,0.4527,4781.9,4781.7,0.41839]
[1756009863390,19.7825,4781.8,4781.7,0.41839]
[1756009863583,19.7825,4781.8,4781.7,0.68079571]
[1756009864593,19.7825,4781.8,4781.7,0.68080919]
[1756009864885,19.7825,4781.8,4781.7,0.26241919]
[1756009865090,19.7825,4781.8,4781.6,0.4184]
[1756009865292,0.7767,4781.7,4781.6,0.4184]
[1756009865694,0.7767,4781.7,4781.6,0.6371]
[1756009865893,0.7767,4781.7,4781.6,0.4184]
[1756009866997,0.7767,4781.7,4781.6,1.1182]
[1756009867292,0.7767,4781.7,4781.6,1.38079329]
[1756009867891,0.7767,4781.7,4781.6,1.97539329]
[1756009873412,0.7767,4781.7,4781.6,1.53259329]
[1756009873602,0.7767,4781.7,4781.6,1.74999329]
[1756009873801,0.7767,4781.7,4781.6,1.97539329]
[1756009874304,0.7767,4781.7,4781.6,1.7128]
[1756009874505,0.7767,4781.7,4781.6,1.97604107]
[1756009874901,0.7767,4781.7,4781.6,1.7128]
[1756009875103,0.7767,4781.7,4781.6,1.97604384]
[1756009878605,19.028,4781.8,4781.7,1.2944]
[1756009878806,19.028,4781.8,4781.7,1.55764384]
[1756009881107,0.4737,4782.1,4781.7,1.55764384]
[1756009881314,0.6229,4782.1,4782.0,1.2944]
[1756009881513,19.6349,4782.1,4782.0,1.55764384]